{"text_format":"1","workbook":"xlsx","n_sheets":4,"sheets":["Данные","Ведомость","Накладная","Квитанция"],"not_rendered":{"charts":0,"images":0,"macros":1,"external_links":0,"defined_names":3,"comments":0,"pivot_tables":0},"unopened":[],"bounds":{"document_bytes":16777216,"sheet_cells":100000,"rows_first":2000,"rows_last":500,"rows_between":2000,"halvings":0,"cell_chars":16384,"cell_head_chars":4096},"cells_cut":0,"cells_raw":0,"read":"whole","date_system":"1900"}

{"sheet":"Данные","index":0,"n_rows":23,"n_cols":7,"rows_kept":23,"cut":false,"hidden":false,"merged":[[2,3,2,4],[19,2,23,2],[26,4,27,6],[20,3,20,6],[21,3,21,6]]}
[null,"Счет № ДЕБЕТ",null,"дата","номер сумки"]
[null,"ПИН",null,"2018-01-15",5252]
[null,"от кого",null,"Номинал",null,"количество","Сумма"]
[null,"адрес",null,5000,"руб.",1,{"$f":"F4*D4","v":5000}]
[null,"получатель",null,2000,"руб.",1,{"$f":"F5*D5","v":2000}]
[null,"ИНН",null,1000,"руб.",1,1000]
[null,"Наименование банка-вносителя",null,500,"руб.",1,500]
[null,"БИК банка вносителя",null,200,"руб.",1,200]
[null,"Счет № КРЕДИТ",null,100,"руб.",1,100]
[null,"Наименование банка-получателя",null,50,"руб.",1,50]
[null,"БИК банка получателя",null,10,"руб.",1,10]
[null,"Счет № в банке получателе",null,10,"руб.",1,10]
[null,"Источник поступления",null,5,"руб.",1,5]
[null,"Символ",null,2,"руб.",1,2]
[null,"Клиент (Фамилия, инициалы)","Заполняются фамилия и инициалы кассира",1,"руб.",1,1]
["Символ","Источник поступления",null,50,"коп.",1,{"$f":"F16*D16/100","v":0.5}]
["02","Торговая выручка",null,10,"коп.",1,{"$f":"F17*D17/100","v":0.1}]
["11","Оказание услуг",null,5,"коп.",1,{"$f":"F18*D18/100","v":0.05}]
["14","Заем от физических лиц",null,1,"коп.",1,{"$f":"F19*D19/100","v":0.01}]
["32","Прочее","заполнять при изменении реквизитов",null,null,"ИТОГО",{"$f":"SUM(G4:G19)","v":8878.66}]
["12 ","Страховые и благотворительные взносы",null,{"$f":"СуммаПрописью(G20)","v":"Восемь тысяч восемьсот семьдесят восемь рублей 66 копеек"}]
[null,null,null,"Сумма прописью"]
[null,null,null,null,"Заполнять при подготовке ведомости"]

{"sheet":"Ведомость","index":1,"n_rows":60,"n_cols":140,"rows_kept":60,"cut":false,"hidden":false,"merged":[[19,1,21,7],[5,78,5,120],[11,80,11,86],[24,104,24,125],[24,128,24,157],[7,16,7,67],[7,78,7,120],[10,1,10,37],[5,121,7,157],[11,121,11,135],[8,121,8,157],[5,11,5,67],[13,87,13,120],[0,127,0,157],[8,0,8,120],[14,121,14,135],[14,136,14,157],[9,57,9,120],[9,8,9,45],[11,1,11,79],[12,1,12,38],[56,92,56,102],[53,125,53,157],[26,1,26,156],[28,106,28,157],[2,37,2,41],[17,1,17,27],[23,128,23,157],[13,136,13,157],[14,22,14,120],[13,1,13,79],[13,80,13,86],[13,121,13,135],[12,136,12,157],[10,38,10,120],[10,121,10,135],[56,125,56,136],[56,137,56,157],[49,99,49,138],[50,99,50,138],[51,92,51,124],[17,28,17,157],[11,87,11,120],[23,72,23,101],[24,11,24,32],[19,9,21,30],[2,138,2,157],[3,138,4,157],[3,65,3,114],[4,68,4,120],[1,75,2,115],[1,42,2,74],[24,72,24,101],[2,127,2,137],[11,136,11,157],[12,39,12,120],[12,121,12,135],[9,46,9,56],[9,121,9,157],[24,35,24,64],[3,127,4,137],[37,106,37,157],[10,136,10,157],[33,31,33,50],[6,1,6,8],[6,9,6,89],[32,5,32,30],[32,31,32,50],[23,11,23,32],[23,35,23,64],[23,104,23,125],[37,5,37,30],[52,0,52,20],[37,31,37,50],[35,106,35,157],[35,5,35,30],[35,31,35,50],[52,21,52,37],[52,38,52,58],[39,106,39,157],[37,51,37,105],[30,0,43,0],[30,1,37,4],[51,21,51,37],[51,38,51,58],[51,59,51,91],[38,1,45,4],[30,5,30,30],[30,31,30,50],[36,5,36,30],[36,31,36,50],[53,21,56,37],[53,38,56,58],[15,1,15,156],[14,1,14,21],[54,125,54,157],[55,59,55,91],[55,92,55,124],[55,125,55,157],[33,5,33,30],[52,125,52,157],[39,51,39,105],[58,79,58,92],[58,94,58,112],[58,124,58,137],[44,106,44,157],[41,106,41,157],[42,106,42,157],[46,106,46,157],[51,125,51,157],[52,92,52,124],[59,124,59,137],[54,59,54,91],[52,59,52,91],[54,92,54,124],[53,59,53,91],[53,92,53,124],[58,58,58,77],[56,59,56,69],[56,70,56,91],[56,103,56,124],[44,51,44,105],[41,51,41,105],[43,106,43,157],[45,106,45,157],[40,5,40,30],[43,5,43,30],[40,51,40,105],[40,106,40,157],[59,58,59,77],[45,31,45,50],[44,5,44,30],[45,51,45,105],[44,31,44,50],[51,0,51,20],[53,0,56,20],[59,0,59,19],[58,21,58,34],[58,36,58,54],[29,106,29,157],[32,106,32,157],[30,106,30,157],[32,51,32,105],[42,31,42,50],[42,5,42,30],[39,5,39,30],[36,106,36,157],[38,106,38,157],[40,31,40,50],[29,1,29,50],[36,51,36,105],[43,31,43,50],[45,5,45,30],[43,51,43,105],[33,51,33,105],[35,51,35,105],[38,51,38,105],[42,51,42,105],[39,31,39,50],[28,51,28,105],[29,51,29,105],[30,51,30,105],[41,5,41,30],[41,31,41,50],[38,5,38,30],[38,31,38,50],[28,1,28,50],[34,5,34,30],[34,31,34,50],[34,51,34,105],[34,106,34,157],[31,5,31,30],[31,31,31,50],[31,51,31,105],[31,106,31,157],[33,106,33,157],[58,0,58,19],[47,1,47,158],[46,1,46,50],[46,51,46,105],[59,139,59,157],[58,139,58,157],[59,79,59,92],[59,94,59,112],[59,21,59,34],[59,36,59,54]]}
[null,"Препроводительная ведомость к сумке",null,null,null,null,null,null,null,null,null,null,null,null,null,null,null,null,null,null,null,null,null,null,null,null,null,null,null,null,null,null,null,null,null,null,null,null,null,null,null,null,null,null,null,null,null,null,null,null,null,null,null,null,null,null,null,null,null,null,null,null,null,null,null,null,null,null,null,null,null,null,null,null,null,null,null,null,null,null,null,null,null,null,null,null,null,null,null,null,null,null,null,null,null,null,null,null,null,null,null,null,null,null,null,null,null,null,null,null,null,null,null,null,null,null,null,null,null,null,null,null,null,null,null,null,null,"Код формы документа\nпо ОКУД 0402300"]
[null,null,null,null,null,null,null,null,null,null,null,null,null,null,null,null,null,null,null,null,null,null,null,null,null,null,null,null,null,null,null,null,null,null,null,null,null,null,null,null,null,null,{"$f":"Данные!E2","v":5252},null,null,null,null,null,null,null,null,null,null,null,null,null,null,null,null,null,null,null,null,null,null,null,null,null,null,null,null,null,null,null,null,{"$f":"Данные!D2","v":"2018-01-15"}]
[null,"ВЕДОМОСТЬ К СУМКЕ",null,null,null,null,null,null,null,null,null,null,null,null,null,null,null,null,null,null,null,null,null,null,null,null,null,null,null,null,null,null,null,null,null,null,null,"№",null,null,null,null,null,null,null,null,null,null,null,null,null,null,null,null,null,null,null,null,null,null,null,null,null,null,null,null,null,null,null,null,null,null,null,null,null,null,null,null,null,null,null,null,null,null,null,null,null,null,null,null,null,null,null,null,null,null,null,null,null,null,null,null,null,null,null,null,null,null,null,null,null,null,null,null,null,null,null,null,null,null,null,null,null,null,null,null,null,"Сумка № ",null,null,null,null,null,null,null,null,null,null,{"$f":"Данные!E2","v":5252}]
[null,null,null,null,null,null,null,null,null,null,null,null,null,null,null,null,null,null,null,null,null,null,null,null,null,null,null,null,null,null,null,null,null,null,null,null,null,null,null,null,null,null,null,null,null,null,null,null,null,null,null,null,null,null,null,null,null,null,null,null,null,null,null,null,null,"Дата"]
[null,null,null,null,null,null,null,null,null,null,null,null,null,null,null,null,null,null,null,null,null,null,null,null,null,null,null,null,null,null,null,null,null,null,null,null,null,null,null,null,null,null,null,null,null,null,null,null,null,null,null,null,null,null,null,null,null,null,null,null,null,null,null,null,null,null,null,null,"ДЕБЕТ"]
[null,"От кого",null,null,null,null,null,null,null,null,null,{"$f":"Данные!C3","v":0},null,null,null,null,null,null,null,null,null,null,null,null,null,null,null,null,null,null,null,null,null,null,null,null,null,null,null,null,null,null,null,null,null,null,null,null,null,null,null,null,null,null,null,null,null,null,null,null,null,null,null,null,null,null,null,null,null,"счет №",null,null,null,null,null,null,null,null,{"$f":"Данные!C1","v":0},null,null,null,null,null,null,null,null,null,null,null,null,null,null,null,null,null,null,null,null,null,null,null,null,null,null,null,null,null,null,null,null,null,null,null,null,null,null,null,null,null,null,{"$f":"Данные!G20","v":8878.66}]
[null,"адрес:",null,null,null,null,null,null,null,{"$f":"Данные!C4","v":0},null,null,null,null,null,null,null,null,null,null,null,null,null,null,null,null,null,null,null,null,null,null,null,null,null,null,null,null,null,null,null,null,null,null,null,null,null,null,null,null,null,null,null,null,null,null,null,null,null,null,null,null,null,null,null,null,null,null,null,null,null,null,null,null,null,null,null,null,null,null,null,null,null,null,null,null,null,null,null,null,"КРЕДИТ"]
[null,"Получатель",null,null,null,null,null,null,null,null,null,null,null,null,null,null,{"$f":"Данные!C5","v":0},null,null,null,null,null,null,null,null,null,null,null,null,null,null,null,null,null,null,null,null,null,null,null,null,null,null,null,null,null,null,null,null,null,null,null,null,null,null,null,null,null,null,null,null,null,null,null,null,null,null,null,null,"счет №",null,null,null,null,null,null,null,null,{"$f":"Данные!C9","v":0}]
[null,null,null,null,null,null,null,null,null,null,null,null,null,null,null,null,null,null,null,null,null,null,null,null,null,null,null,null,null,null,null,null,null,null,null,null,null,null,null,null,null,null,null,null,null,null,null,null,null,null,null,null,null,null,null,null,null,null,null,null,null,null,null,null,null,null,null,null,null,null,null,null,null,null,null,null,null,null,null,null,null,null,null,null,null,null,null,null,null,null,null,null,null,null,null,null,null,null,null,null,null,null,null,null,null,null,null,null,null,null,null,null,null,null,null,null,null,null,null,null,null,"Сумма цифрами"]
[null,"ИНН",null,null,null,null,null,null,{"$f":"Данные!C6","v":0},null,null,null,null,null,null,null,null,null,null,null,null,null,null,null,null,null,null,null,null,null,null,null,null,null,null,null,null,null,null,null,null,null,null,null,null,null,"Счет № ",null,null,null,null,null,null,null,null,null,null,{"$f":"Данные!C12","v":0},null,null,null,null,null,null,null,null,null,null,null,null,null,null,null,null,null,null,null,null,null,null,null,null,null,null,null,null,null,null,null,null,null,null,null,null,null,null,null,null,null,null,null,null,null,null,null,null,null,null,null,null,null,null,null,null,null,null,null,null,null,null,null,"в том числе по символам:"]
[null,"Наименование банка-вносителя",null,null,null,null,null,null,null,null,null,null,null,null,null,null,null,null,null,null,null,null,null,null,null,null,null,null,null,null,null,null,null,null,null,null,null,null,{"$f":"Данные!C7","v":0},null,null,null,null,null,null,null,null,null,null,null,null,null,null,null,null,null,null,null,null,null,null,null,null,null,null,null,null,null,null,null,null,null,null,null,null,null,null,null,null,null,null,null,null,null,null,null,null,null,null,null,null,null,null,null,null,null,null,null,null,null,null,null,null,null,null,null,null,null,null,null,null,null,null,null,null,null,null,null,null,null,null,"символ",null,null,null,null,null,null,null,null,null,null,null,null,null,null,"сумма"]
[null,null,null,null,null,null,null,null,null,null,null,null,null,null,null,null,null,null,null,null,null,null,null,null,null,null,null,null,null,null,null,null,null,null,null,null,null,null,null,null,null,null,null,null,null,null,null,null,null,null,null,null,null,null,null,null,null,null,null,null,null,null,null,null,null,null,null,null,null,null,null,null,null,null,null,null,null,null,null,null,"БИК",null,null,null,null,null,null,{"$f":"Данные!C8","v":0},null,null,null,null,null,null,null,null,null,null,null,null,null,null,null,null,null,null,null,null,null,null,null,null,null,null,null,null,null,null,null,null,null,{"$f":"Данные!C14","v":0},null,null,null,null,null,null,null,null,null,null,null,null,null,null,{"$f":"Данные!G20","v":8878.66}]
[null,"Наименование банка-получателя",null,null,null,null,null,null,null,null,null,null,null,null,null,null,null,null,null,null,null,null,null,null,null,null,null,null,null,null,null,null,null,null,null,null,null,null,null,{"$f":"Данные!C10","v":0}]
[null,null,null,null,null,null,null,null,null,null,null,null,null,null,null,null,null,null,null,null,null,null,null,null,null,null,null,null,null,null,null,null,null,null,null,null,null,null,null,null,null,null,null,null,null,null,null,null,null,null,null,null,null,null,null,null,null,null,null,null,null,null,null,null,null,null,null,null,null,null,null,null,null,null,null,null,null,null,null,null,"БИК",null,null,null,null,null,null,{"$f":"Данные!C11","v":0}]
[null,"Сумма прописью:"]
[null,{"$f":"Данные!D21","v":"Восемь тысяч восемьсот семьдесят восемь рублей 66 копеек"}]
[]
[null,"Источник поступления:",null,null,null,null,null,null,null,null,null,null,null,null,null,null,null,null,null,null,null,null,null,null,null,null,null,null,{"$f":"Данные!C13","v":0}]
[]
[null,"ПИН",null,null,null,null,null,null,null,{"$f":"Данные!C2","v":0}]
[]
[]
[]
[null,"Клиент",null,null,null,null,null,null,null,null,null,null,null,null,null,null,null,null,null,null,null,null,null,null,null,null,null,null,null,null,null,null,null,null,null,{"$f":"Данные!C15","v":"Заполняются фамилия и инициалы кассира"}]
[null,null,null,null,null,null,null,null,null,null,null,"(личная подпись)",null,null,null,null,null,null,null,null,null,null,null,null,null,null,null,null,null,null,null,null,null,null,null,"(фамилия, инициалы)",null,null,null,null,null,null,null,null,null,null,null,null,null,null,null,null,null,null,null,null,null,null,null,null,null,null,null,null,null,null,null,null,null,null,null,null,"(наименование должности)",null,null,null,null,null,null,null,null,null,null,null,null,null,null,null,null,null,null,null,null,null,null,null,null,null,null,null,null,null,null,null,"(личная подпись)",null,null,null,null,null,null,null,null,null,null,null,null,null,null,null,null,null,null,null,null,null,null,null,"(фамилия, инициалы)"]
[]
[null,"Опись сдаваемых наличных денег"]
[]
[null,"Номинал банкнот, монеты",null,null,null,null,null,null,null,null,null,null,null,null,null,null,null,null,null,null,null,null,null,null,null,null,null,null,null,null,null,null,null,null,null,null,null,null,null,null,null,null,null,null,null,null,null,null,null,null,null,"Количество сдаваемых банкнот, монеты\n(в листах, штуках)",null,null,null,null,null,null,null,null,null,null,null,null,null,null,null,null,null,null,null,null,null,null,null,null,null,null,null,null,null,null,null,null,null,null,null,null,null,null,null,null,null,null,null,null,null,null,null,null,null,null,null,null,null,null,"Сумма цифрами"]
[null,1,null,null,null,null,null,null,null,null,null,null,null,null,null,null,null,null,null,null,null,null,null,null,null,null,null,null,null,null,null,null,null,null,null,null,null,null,null,null,null,null,null,null,null,null,null,null,null,null,null,2,null,null,null,null,null,null,null,null,null,null,null,null,null,null,null,null,null,null,null,null,null,null,null,null,null,null,null,null,null,null,null,null,null,null,null,null,null,null,null,null,null,null,null,null,null,null,null,null,null,null,null,null,null,null,3]
[null,"банкноты",null,null,null,5000,null,null,null,null,null,null,null,null,null,null,null,null,null,null,null,null,null,null,null,null,null,null,null,null,null,"руб.",null,null,null,null,null,null,null,null,null,null,null,null,null,null,null,null,null,null,null,{"$f":"Данные!F4","v":1},null,null,null,null,null,null,null,null,null,null,null,null,null,null,null,null,null,null,null,null,null,null,null,null,null,null,null,null,null,null,null,null,null,null,null,null,null,null,null,null,null,null,null,null,null,null,null,null,null,null,null,null,null,null,{"$f":"F31*AZ31","v":5000}]
[null,null,null,null,null,2000,null,null,null,null,null,null,null,null,null,null,null,null,null,null,null,null,null,null,null,null,null,null,null,null,null,"руб.",null,null,null,null,null,null,null,null,null,null,null,null,null,null,null,null,null,null,null,{"$f":"Данные!F5","v":1},null,null,null,null,null,null,null,null,null,null,null,null,null,null,null,null,null,null,null,null,null,null,null,null,null,null,null,null,null,null,null,null,null,null,null,null,null,null,null,null,null,null,null,null,null,null,null,null,null,null,null,null,null,null,{"$f":"F32*AZ32","v":2000}]
[null,null,null,null,null,1000,null,null,null,null,null,null,null,null,null,null,null,null,null,null,null,null,null,null,null,null,null,null,null,null,null,"руб.",null,null,null,null,null,null,null,null,null,null,null,null,null,null,null,null,null,null,null,{"$f":"Данные!F6","v":1},null,null,null,null,null,null,null,null,null,null,null,null,null,null,null,null,null,null,null,null,null,null,null,null,null,null,null,null,null,null,null,null,null,null,null,null,null,null,null,null,null,null,null,null,null,null,null,null,null,null,null,null,null,null,{"$f":"F33*AZ33","v":1000}]
[null,null,null,null,null,500,null,null,null,null,null,null,null,null,null,null,null,null,null,null,null,null,null,null,null,null,null,null,null,null,null,"руб.",null,null,null,null,null,null,null,null,null,null,null,null,null,null,null,null,null,null,null,{"$f":"Данные!F7","v":1},null,null,null,null,null,null,null,null,null,null,null,null,null,null,null,null,null,null,null,null,null,null,null,null,null,null,null,null,null,null,null,null,null,null,null,null,null,null,null,null,null,null,null,null,null,null,null,null,null,null,null,null,null,null,500]
[null,null,null,null,null,200,null,null,null,null,null,null,null,null,null,null,null,null,null,null,null,null,null,null,null,null,null,null,null,null,null,"руб.",null,null,null,null,null,null,null,null,null,null,null,null,null,null,null,null,null,null,null,{"$f":"Данные!F8","v":1},null,null,null,null,null,null,null,null,null,null,null,null,null,null,null,null,null,null,null,null,null,null,null,null,null,null,null,null,null,null,null,null,null,null,null,null,null,null,null,null,null,null,null,null,null,null,null,null,null,null,null,null,null,null,{"$f":"F35*AZ35","v":200}]
[null,null,null,null,null,100,null,null,null,null,null,null,null,null,null,null,null,null,null,null,null,null,null,null,null,null,null,null,null,null,null,"руб.",null,null,null,null,null,null,null,null,null,null,null,null,null,null,null,null,null,null,null,{"$f":"Данные!F9","v":1},null,null,null,null,null,null,null,null,null,null,null,null,null,null,null,null,null,null,null,null,null,null,null,null,null,null,null,null,null,null,null,null,null,null,null,null,null,null,null,null,null,null,null,null,null,null,null,null,null,null,null,null,null,null,100]
[null,null,null,null,null,50,null,null,null,null,null,null,null,null,null,null,null,null,null,null,null,null,null,null,null,null,null,null,null,null,null,"руб.",null,null,null,null,null,null,null,null,null,null,null,null,null,null,null,null,null,null,null,{"$f":"Данные!F10","v":1},null,null,null,null,null,null,null,null,null,null,null,null,null,null,null,null,null,null,null,null,null,null,null,null,null,null,null,null,null,null,null,null,null,null,null,null,null,null,null,null,null,null,null,null,null,null,null,null,null,null,null,null,null,null,50]
[null,null,null,null,null,10,null,null,null,null,null,null,null,null,null,null,null,null,null,null,null,null,null,null,null,null,null,null,null,null,null,"руб.",null,null,null,null,null,null,null,null,null,null,null,null,null,null,null,null,null,null,null,{"$f":"Данные!F11","v":1},null,null,null,null,null,null,null,null,null,null,null,null,null,null,null,null,null,null,null,null,null,null,null,null,null,null,null,null,null,null,null,null,null,null,null,null,null,null,null,null,null,null,null,null,null,null,null,null,null,null,null,null,null,null,10]
[null,"монеты",null,null,null,10,null,null,null,null,null,null,null,null,null,null,null,null,null,null,null,null,null,null,null,null,null,null,null,null,null,"руб.",null,null,null,null,null,null,null,null,null,null,null,null,null,null,null,null,null,null,null,{"$f":"Данные!F12","v":1},null,null,null,null,null,null,null,null,null,null,null,null,null,null,null,null,null,null,null,null,null,null,null,null,null,null,null,null,null,null,null,null,null,null,null,null,null,null,null,null,null,null,null,null,null,null,null,null,null,null,null,null,null,null,10]
[null,null,null,null,null,5,null,null,null,null,null,null,null,null,null,null,null,null,null,null,null,null,null,null,null,null,null,null,null,null,null,"руб.",null,null,null,null,null,null,null,null,null,null,null,null,null,null,null,null,null,null,null,{"$f":"Данные!F13","v":1},null,null,null,null,null,null,null,null,null,null,null,null,null,null,null,null,null,null,null,null,null,null,null,null,null,null,null,null,null,null,null,null,null,null,null,null,null,null,null,null,null,null,null,null,null,null,null,null,null,null,null,null,null,null,5]
[null,null,null,null,null,2,null,null,null,null,null,null,null,null,null,null,null,null,null,null,null,null,null,null,null,null,null,null,null,null,null,"руб.",null,null,null,null,null,null,null,null,null,null,null,null,null,null,null,null,null,null,null,{"$f":"Данные!F14","v":1},null,null,null,null,null,null,null,null,null,null,null,null,null,null,null,null,null,null,null,null,null,null,null,null,null,null,null,null,null,null,null,null,null,null,null,null,null,null,null,null,null,null,null,null,null,null,null,null,null,null,null,null,null,null,2]
[null,null,null,null,null,1,null,null,null,null,null,null,null,null,null,null,null,null,null,null,null,null,null,null,null,null,null,null,null,null,null,"руб.",null,null,null,null,null,null,null,null,null,null,null,null,null,null,null,null,null,null,null,{"$f":"Данные!F15","v":1},null,null,null,null,null,null,null,null,null,null,null,null,null,null,null,null,null,null,null,null,null,null,null,null,null,null,null,null,null,null,null,null,null,null,null,null,null,null,null,null,null,null,null,null,null,null,null,null,null,null,null,null,null,null,1]
[null,null,null,null,null,50,null,null,null,null,null,null,null,null,null,null,null,null,null,null,null,null,null,null,null,null,null,null,null,null,null,"коп.",null,null,null,null,null,null,null,null,null,null,null,null,null,null,null,null,null,null,null,{"$f":"Данные!F16","v":1},null,null,null,null,null,null,null,null,null,null,null,null,null,null,null,null,null,null,null,null,null,null,null,null,null,null,null,null,null,null,null,null,null,null,null,null,null,null,null,null,null,null,null,null,null,null,null,null,null,null,null,null,null,null,{"$f":"F43*AZ43/100","v":0.5}]
[null,null,null,null,null,10,null,null,null,null,null,null,null,null,null,null,null,null,null,null,null,null,null,null,null,null,null,null,null,null,null,"коп.",null,null,null,null,null,null,null,null,null,null,null,null,null,null,null,null,null,null,null,{"$f":"Данные!F17","v":1},null,null,null,null,null,null,null,null,null,null,null,null,null,null,null,null,null,null,null,null,null,null,null,null,null,null,null,null,null,null,null,null,null,null,null,null,null,null,null,null,null,null,null,null,null,null,null,null,null,null,null,null,null,null,{"$f":"F44*AZ44/100","v":0.1}]
[null,null,null,null,null,5,null,null,null,null,null,null,null,null,null,null,null,null,null,null,null,null,null,null,null,null,null,null,null,null,null,"коп.",null,null,null,null,null,null,null,null,null,null,null,null,null,null,null,null,null,null,null,{"$f":"Данные!F18","v":1},null,null,null,null,null,null,null,null,null,null,null,null,null,null,null,null,null,null,null,null,null,null,null,null,null,null,null,null,null,null,null,null,null,null,null,null,null,null,null,null,null,null,null,null,null,null,null,null,null,null,null,null,null,null,{"$f":"F45*AZ45/100","v":0.05}]
[null,null,null,null,null,1,null,null,null,null,null,null,null,null,null,null,null,null,null,null,null,null,null,null,null,null,null,null,null,null,null,"коп.",null,null,null,null,null,null,null,null,null,null,null,null,null,null,null,null,null,null,null,{"$f":"Данные!F19","v":1},null,null,null,null,null,null,null,null,null,null,null,null,null,null,null,null,null,null,null,null,null,null,null,null,null,null,null,null,null,null,null,null,null,null,null,null,null,null,null,null,null,null,null,null,null,null,null,null,null,null,null,null,null,null,{"$f":"F46*AZ46/100","v":0.01}]
[null,"ИТОГО:",null,null,null,null,null,null,null,null,null,null,null,null,null,null,null,null,null,null,null,null,null,null,null,null,null,null,null,null,null,null,null,null,null,null,null,null,null,null,null,null,null,null,null,null,null,null,null,null,null,null,null,null,null,null,null,null,null,null,null,null,null,null,null,null,null,null,null,null,null,null,null,null,null,null,null,null,null,null,null,null,null,null,null,null,null,null,null,null,null,null,null,null,null,null,null,null,null,null,null,null,null,null,null,null,{"$f":"SUM(DC31:FA46)","v":8878.66}]
[]
[]
[null,"Акт вскрытия сумки и пересчета вложенных наличных денег"]
[null,null,null,null,null,null,null,null,null,null,null,null,null,null,null,null,null,null,null,null,null,null,null,null,null,null,null,null,null,null,null,null,null,null,null,null,null,null,null,null,null,null,null,null,null,null,null,null,null,null,null,null,null,null,null,null,null,null,null,null,null,null,null,null,null,null,null,null,null,null,null,null,null,null,null,null,null,null,null,null,null,null,null,null,null,null,null,null,null,null,null,null,null,null,null,null,null,null,null,"Дата"]
["Фактическая сумма \nцифрами",null,null,null,null,null,null,null,null,null,null,null,null,null,null,null,null,null,null,null,null,"Сумма недостачи \nцифрами",null,null,null,null,null,null,null,null,null,null,null,null,null,null,null,null,"Сумма излишка \nцифрами",null,null,null,null,null,null,null,null,null,null,null,null,null,null,null,null,null,null,null,null,"Сомнительные \nденежные знаки\n(для банкнот Банка России - номинал, год образца, серия и номер; для монеты Банка России - номинал, год чеканки, наименование монетного двора)",null,null,null,null,null,null,null,null,null,null,null,null,null,null,null,null,null,null,null,null,null,null,null,null,null,null,null,null,null,null,null,null,"Неплатежеспособные \nне имеющие признаков подделки денежные знаки\n(для банкнот Банка России - номинал, год образца, серия и номер; для монеты Банка России - номинал, год чеканки, наименование монетного двора)",null,null,null,null,null,null,null,null,null,null,null,null,null,null,null,null,null,null,null,null,null,null,null,null,null,null,null,null,null,null,null,null,"Имеющие признаки подделки денежные знаки\n(для банкнот Банка России - номинал, год образца, серия и номер; для монеты Банка России - номинал, год чеканки, наименование монетного двора)"]
[1,null,null,null,null,null,null,null,null,null,null,null,null,null,null,null,null,null,null,null,null,2,null,null,null,null,null,null,null,null,null,null,null,null,null,null,null,null,3,null,null,null,null,null,null,null,null,null,null,null,null,null,null,null,null,null,null,null,null,4,null,null,null,null,null,null,null,null,null,null,null,null,null,null,null,null,null,null,null,null,null,null,null,null,null,null,null,null,null,null,null,null,5,null,null,null,null,null,null,null,null,null,null,null,null,null,null,null,null,null,null,null,null,null,null,null,null,null,null,null,null,null,null,null,null,6]
[]
[]
[]
[null,null,null,null,null,null,null,null,null,null,null,null,null,null,null,null,null,null,null,null,null,null,null,null,null,null,null,null,null,null,null,null,null,null,null,null,null,null,null,null,null,null,null,null,null,null,null,null,null,null,null,null,null,null,null,null,null,null,null,"Сумма цифрами",null,null,null,null,null,null,null,null,null,null,null,null,null,null,null,null,null,null,null,null,null,null,null,null,null,null,null,null,null,null,null,null,"Сумма цифрами",null,null,null,null,null,null,null,null,null,null,null,null,null,null,null,null,null,null,null,null,null,null,null,null,null,null,null,null,null,null,null,null,"Сумма цифрами"]
[]
[null,null,null,null,null,null,null,null,null,null,null,null,null,null,null,null,null,null,null,null,null,null,null,null,null,null,null,null,null,null,null,null,null,null,null,null,null,null,null,null,null,null,null,null,null,null,null,null,null,null,null,null,null,null,null,null,null,null,null,null,null,null,null,null,null,null,null,null,null,null,null,null,null,null,null,null,null,null,null,null,null,null,null,null,null,null,null,null,null,null,null,null,null,null,null,null,null,null,null,null,null,null,null,null,null,null,null,null,null,null,null,null,null,null,null,null,null,null,null,null,null,null,null,"Клиент "]
["(наименование должности)",null,null,null,null,null,null,null,null,null,null,null,null,null,null,null,null,null,null,null,null,"(личная подпись)",null,null,null,null,null,null,null,null,null,null,null,null,null,null,"(фамилия, инициалы)",null,null,null,null,null,null,null,null,null,null,null,null,null,null,null,null,null,null,null,null,null,"(наименование должности)",null,null,null,null,null,null,null,null,null,null,null,null,null,null,null,null,null,null,null,null,"(личная подпись)",null,null,null,null,null,null,null,null,null,null,null,null,null,null,"(фамилия, инициалы)",null,null,null,null,null,null,null,null,null,null,null,null,null,null,null,null,null,null,null,null,null,null,null,null,null,null,null,null,null,"(личная подпись)",null,null,null,null,null,null,null,null,null,null,null,null,null,null,"(фамилия, инициалы)"]

{"sheet":"Накладная","index":2,"n_rows":61,"n_cols":146,"rows_kept":61,"cut":false,"hidden":false,"merged":[[21,10,21,31],[14,122,14,144],[14,145,14,157],[17,1,17,27],[17,28,17,157],[21,34,21,63],[21,72,21,101],[21,104,21,125],[21,128,21,157],[15,1,15,157],[13,136,13,157],[14,22,14,120],[2,36,2,41],[11,136,11,157],[12,1,12,38],[12,39,12,120],[12,121,12,135],[12,136,12,157],[11,1,11,79],[11,80,11,86],[9,8,9,45],[9,46,9,56],[9,57,9,120],[9,121,9,157],[10,1,10,37],[10,38,10,120],[10,121,10,135],[2,138,2,157],[1,75,2,115],[3,138,4,157],[11,87,11,120],[11,121,11,135],[8,121,8,157],[22,72,22,101],[22,104,22,125],[22,128,22,157],[0,127,0,157],[3,65,3,114],[4,68,4,120],[5,11,5,67],[5,78,5,120],[1,42,2,74],[2,127,2,137],[39,106,39,157],[38,51,38,105],[39,51,39,105],[25,112,25,143],[22,10,22,31],[22,34,22,63],[24,46,24,81],[25,46,25,81],[24,84,24,109],[25,84,25,109],[31,106,31,157],[33,106,33,157],[34,106,34,157],[36,106,36,157],[37,106,37,157],[38,106,38,157],[43,106,43,157],[40,106,40,157],[41,106,41,157],[50,99,50,138],[44,106,44,157],[45,106,45,157],[46,106,46,157],[42,51,42,105],[47,51,47,105],[37,5,37,30],[37,31,37,50],[38,5,38,30],[38,31,38,50],[39,5,39,30],[39,31,39,50],[53,125,53,157],[31,0,44,0],[31,5,31,30],[31,31,31,50],[33,5,33,30],[33,31,33,50],[34,5,34,30],[52,21,52,37],[52,125,52,157],[51,99,51,138],[53,21,53,37],[52,38,52,58],[37,51,37,105],[53,59,53,91],[53,92,53,124],[47,106,47,157],[46,5,46,30],[46,31,46,50],[46,51,46,105],[53,38,53,58],[60,21,60,34],[60,36,60,54],[60,58,60,77],[59,94,59,112],[60,94,60,112],[59,79,59,92],[60,79,60,92],[59,58,59,77],[59,21,59,34],[59,36,59,54],[54,125,54,157],[55,59,55,91],[59,124,59,137],[59,139,59,157],[55,125,55,157],[54,59,54,91],[54,92,54,124],[56,125,56,157],[57,92,57,102],[57,59,57,69],[60,124,60,137],[60,139,60,157],[41,5,41,30],[41,31,41,50],[41,51,41,105],[42,106,42,157],[43,5,43,30],[43,31,43,50],[43,51,43,105],[57,137,57,157],[30,1,30,50],[10,136,10,157],[5,121,7,157],[7,16,7,67],[7,78,7,120],[8,0,8,120],[6,1,6,8],[6,9,6,89],[29,106,29,157],[30,106,30,157],[57,125,57,136],[34,51,34,105],[31,51,31,105],[33,51,33,105],[42,5,42,30],[3,127,4,137],[44,5,44,30],[44,31,44,50],[44,51,44,105],[27,1,27,156],[52,59,52,91],[52,92,52,124],[13,1,13,79],[13,80,13,86],[13,87,13,120],[13,121,13,135],[24,112,24,143],[40,5,40,30],[40,31,40,50],[29,51,29,105],[57,70,57,91],[54,21,57,37],[54,38,57,58],[56,59,56,91],[56,92,56,124],[57,103,57,124],[55,92,55,124],[19,2,19,8],[19,10,19,31],[29,1,29,50],[14,1,14,21],[30,51,30,105],[45,5,45,30],[45,31,45,50],[45,51,45,105],[42,31,42,50],[36,51,36,105],[39,1,46,4],[47,1,47,50],[32,5,32,30],[32,31,32,50],[32,51,32,105],[32,106,32,157],[40,51,40,105],[34,31,34,50],[36,5,36,30],[36,31,36,50],[35,5,35,30],[35,31,35,50],[35,51,35,105],[35,106,35,157],[60,0,60,19],[53,0,53,20],[54,0,57,20],[31,1,38,4],[52,0,52,20],[49,0,49,157]]}
[null,null,null,null,null,null,null,null,null,null,null,null,null,null,null,null,null,null,null,null,null,null,null,null,null,null,null,null,null,null,null,null,null,null,null,null,null,null,null,null,null,null,null,null,null,null,null,null,null,null,null,null,null,null,null,null,null,null,null,null,null,null,null,null,null,null,null,null,null,null,null,null,null,null,null,null,null,null,null,null,null,null,null,null,null,null,null,null,null,null,null,null,null,null,null,null,null,null,null,null,null,null,null,null,null,null,null,null,null,null,null,null,null,null,null,null,null,null,null,null,null,null,null,null,null,null,null,"Код формы документа\nпо ОКУД 0402300"]
[null,null,null,null,null,null,null,null,null,null,null,null,null,null,null,null,null,null,null,null,null,null,null,null,null,null,null,null,null,null,null,null,null,null,null,null,null,null,null,null,null,null,{"$f":"Ведомость!AQ2","v":5252},null,null,null,null,null,null,null,null,null,null,null,null,null,null,null,null,null,null,null,null,null,null,null,null,null,null,null,null,null,null,null,null,{"$f":"Ведомость!BX2","v":"2018-01-15"}]
[null,"НАКЛАДНАЯ К СУМКЕ",null,null,null,null,null,null,null,null,null,null,null,null,null,null,null,null,null,null,null,null,null,null,null,null,null,null,null,null,null,null,null,null,null,null,"№",null,null,null,null,null,null,null,null,null,null,null,null,null,null,null,null,null,null,null,null,null,null,null,null,null,null,null,null,null,null,null,null,null,null,null,null,null,null,null,null,null,null,null,null,null,null,null,null,null,null,null,null,null,null,null,null,null,null,null,null,null,null,null,null,null,null,null,null,null,null,null,null,null,null,null,null,null,null,null,null,null,null,null,null,null,null,null,null,null,null,"Сумка № ",null,null,null,null,null,null,null,null,null,null,{"$f":"Ведомость!EI3","v":5252}]
[null,null,null,null,null,null,null,null,null,null,null,null,null,null,null,null,null,null,null,null,null,null,null,null,null,null,null,null,null,null,null,null,null,null,null,null,null,null,null,null,null,null,null,null,null,null,null,null,null,null,null,null,null,null,null,null,null,null,null,null,null,null,null,null,null,"Дата",null,null,null,null,null,null,null,null,null,null,null,null,null,null,null,null,null,null,null,null,null,null,null,null,null,null,null,null,null,null,null,null,null,null,null,null,null,null,null,null,null,null,null,null,null,null,null,null,null,null,null,null,null,null,null,null,null,null,null,null,null,null,null,null,null,null,null,null,null,null,null,null,{"$f":"Ведомость!EI4","v":0}]
[null,null,null,null,null,null,null,null,null,null,null,null,null,null,null,null,null,null,null,null,null,null,null,null,null,null,null,null,null,null,null,null,null,null,null,null,null,null,null,null,null,null,null,null,null,null,null,null,null,null,null,null,null,null,null,null,null,null,null,null,null,null,null,null,null,null,null,null,"ДЕБЕТ"]
[null,"От кого",null,null,null,null,null,null,null,null,null,{"$f":"Ведомость!L6","v":0},null,null,null,null,null,null,null,null,null,null,null,null,null,null,null,null,null,null,null,null,null,null,null,null,null,null,null,null,null,null,null,null,null,null,null,null,null,null,null,null,null,null,null,null,null,null,null,null,null,null,null,null,null,null,null,null,null,"счет №",null,null,null,null,null,null,null,null,{"$f":"Ведомость!CA6","v":0},null,null,null,null,null,null,null,null,null,null,null,null,null,null,null,null,null,null,null,null,null,null,null,null,null,null,null,null,null,null,null,null,null,null,null,null,null,null,null,null,null,null,{"$f":"Ведомость!DR6","v":8878.66}]
[null,"адрес:",null,null,null,null,null,null,null,{"$f":"Ведомость!J7","v":0},null,null,null,null,null,null,null,null,null,null,null,null,null,null,null,null,null,null,null,null,null,null,null,null,null,null,null,null,null,null,null,null,null,null,null,null,null,null,null,null,null,null,null,null,null,null,null,null,null,null,null,null,null,null,null,null,null,null,null,null,null,null,null,null,null,null,null,null,null,null,null,null,null,null,null,null,null,null,null,null,"КРЕДИТ"]
[null,"Получатель",null,null,null,null,null,null,null,null,null,null,null,null,null,null,{"$f":"Ведомость!Q8","v":0},null,null,null,null,null,null,null,null,null,null,null,null,null,null,null,null,null,null,null,null,null,null,null,null,null,null,null,null,null,null,null,null,null,null,null,null,null,null,null,null,null,null,null,null,null,null,null,null,null,null,null,null,"счет №",null,null,null,null,null,null,null,null,{"$f":"Ведомость!CA8","v":0}]
[null,null,null,null,null,null,null,null,null,null,null,null,null,null,null,null,null,null,null,null,null,null,null,null,null,null,null,null,null,null,null,null,null,null,null,null,null,null,null,null,null,null,null,null,null,null,null,null,null,null,null,null,null,null,null,null,null,null,null,null,null,null,null,null,null,null,null,null,null,null,null,null,null,null,null,null,null,null,null,null,null,null,null,null,null,null,null,null,null,null,null,null,null,null,null,null,null,null,null,null,null,null,null,null,null,null,null,null,null,null,null,null,null,null,null,null,null,null,null,null,null,"Сумма цифрами"]
[null,"ИНН",null,null,null,null,null,null,{"$f":"Ведомость!I10","v":0},null,null,null,null,null,null,null,null,null,null,null,null,null,null,null,null,null,null,null,null,null,null,null,null,null,null,null,null,null,null,null,null,null,null,null,null,null,"Счет № ",null,null,null,null,null,null,null,null,null,null,{"$f":"Ведомость!BF10","v":0},null,null,null,null,null,null,null,null,null,null,null,null,null,null,null,null,null,null,null,null,null,null,null,null,null,null,null,null,null,null,null,null,null,null,null,null,null,null,null,null,null,null,null,null,null,null,null,null,null,null,null,null,null,null,null,null,null,null,null,null,null,null,null,"в том числе по символам:"]
[null,"Наименование банка-вносителя",null,null,null,null,null,null,null,null,null,null,null,null,null,null,null,null,null,null,null,null,null,null,null,null,null,null,null,null,null,null,null,null,null,null,null,null,{"$f":"Ведомость!AM11","v":0},null,null,null,null,null,null,null,null,null,null,null,null,null,null,null,null,null,null,null,null,null,null,null,null,null,null,null,null,null,null,null,null,null,null,null,null,null,null,null,null,null,null,null,null,null,null,null,null,null,null,null,null,null,null,null,null,null,null,null,null,null,null,null,null,null,null,null,null,null,null,null,null,null,null,null,null,null,null,null,null,null,null,"символ",null,null,null,null,null,null,null,null,null,null,null,null,null,null,"сумма"]
[null,null,null,null,null,null,null,null,null,null,null,null,null,null,null,null,null,null,null,null,null,null,null,null,null,null,null,null,null,null,null,null,null,null,null,null,null,null,null,null,null,null,null,null,null,null,null,null,null,null,null,null,null,null,null,null,null,null,null,null,null,null,null,null,null,null,null,null,null,null,null,null,null,null,null,null,null,null,null,null,"БИК",null,null,null,null,null,null,{"$f":"Ведомость!CJ12","v":0},null,null,null,null,null,null,null,null,null,null,null,null,null,null,null,null,null,null,null,null,null,null,null,null,null,null,null,null,null,null,null,null,null,{"$f":"Ведомость!DR12","v":0},null,null,null,null,null,null,null,null,null,null,null,null,null,null,{"$f":"Ведомость!EG12","v":8878.66}]
[null,"Наименование банка-получателя",null,null,null,null,null,null,null,null,null,null,null,null,null,null,null,null,null,null,null,null,null,null,null,null,null,null,null,null,null,null,null,null,null,null,null,null,null,{"$f":"Ведомость!AN13","v":0}]
[null,null,null,null,null,null,null,null,null,null,null,null,null,null,null,null,null,null,null,null,null,null,null,null,null,null,null,null,null,null,null,null,null,null,null,null,null,null,null,null,null,null,null,null,null,null,null,null,null,null,null,null,null,null,null,null,null,null,null,null,null,null,null,null,null,null,null,null,null,null,null,null,null,null,null,null,null,null,null,null,"БИК",null,null,null,null,null,null,{"$f":"Ведомость!CJ14","v":0}]
[null,"Сумма прописью:",null,null,null,null,null,null,null,null,null,null,null,null,null,null,null,null,null,null,null,null,null,null,null,null,null,null,null,null,null,null,null,null,null,null,null,null,null,null,null,null,null,null,null,null,null,null,null,null,null,null,null,null,null,null,null,null,null,null,null,null,null,null,null,null,null,null,null,null,null,null,null,null,null,null,null,null,null,null,null,null,null,null,null,null,null,null,null,null,null,null,null,null,null,null,null,null,null,null,null,null,null,null,null,null,null,null,null,null,null,null,null,null,null,null,null,null,null,null,null,null,"Шифр документа",null,null,null,null,null,null,null,null,null,null,null,null,null,null,null,null,null,null,null,null,null,null,"04"]
[null,{"$f":"Ведомость!B16","v":"Восемь тысяч восемьсот семьдесят восемь рублей 66 копеек"}]
[]
[null,"Источник поступления:",null,null,null,null,null,null,null,null,null,null,null,null,null,null,null,null,null,null,null,null,null,null,null,null,null,null,{"$f":"Ведомость!AC18","v":0}]
[]
[null,null,"ПИН",null,null,null,null,null,null,null,{"$f":"Данные!C2","v":0}]
[]
["Клиент",null,null,null,null,null,null,null,null,null,null,null,null,null,null,null,null,null,null,null,null,null,null,null,null,null,null,null,null,null,null,null,null,null,{"$f":"Данные!C15","v":"Заполняются фамилия и инициалы кассира"}]
[null,null,null,null,null,null,null,null,null,null,"(личная подпись)",null,null,null,null,null,null,null,null,null,null,null,null,null,null,null,null,null,null,null,null,null,null,null,"(фамилия, инициалы)",null,null,null,null,null,null,null,null,null,null,null,null,null,null,null,null,null,null,null,null,null,null,null,null,null,null,null,null,null,null,null,null,null,null,null,null,null,"(наименование должности)",null,null,null,null,null,null,null,null,null,null,null,null,null,null,null,null,null,null,null,null,null,null,null,null,null,null,null,null,null,null,null,"(личная подпись)",null,null,null,null,null,null,null,null,null,null,null,null,null,null,null,null,null,null,null,null,null,null,null,"(фамилия, инициалы)"]
[]
["Сумка с объявленной суммой принята"]
[null,null,null,null,null,null,null,null,null,null,null,null,null,null,null,null,null,null,null,null,null,null,null,null,null,null,null,null,null,null,null,null,null,null,null,null,null,null,null,null,null,null,null,null,null,null,"(наименование должности)",null,null,null,null,null,null,null,null,null,null,null,null,null,null,null,null,null,null,null,null,null,null,null,null,null,null,null,null,null,null,null,null,null,null,null,null,null,"(личная подпись)",null,null,null,null,null,null,null,null,null,null,null,null,null,null,null,null,null,null,null,null,null,null,null,null,null,null,null,"(фамилия, инициалы)"]
[]
[null,"Опись сдаваемых наличных денег"]
[]
[null,"Номинал банкнот, монеты",null,null,null,null,null,null,null,null,null,null,null,null,null,null,null,null,null,null,null,null,null,null,null,null,null,null,null,null,null,null,null,null,null,null,null,null,null,null,null,null,null,null,null,null,null,null,null,null,null,"Количество сдаваемых банкнот, монеты\n(в листах, штуках)",null,null,null,null,null,null,null,null,null,null,null,null,null,null,null,null,null,null,null,null,null,null,null,null,null,null,null,null,null,null,null,null,null,null,null,null,null,null,null,null,null,null,null,null,null,null,null,null,null,null,null,null,null,null,"Сумма цифрами"]
[null,1,null,null,null,null,null,null,null,null,null,null,null,null,null,null,null,null,null,null,null,null,null,null,null,null,null,null,null,null,null,null,null,null,null,null,null,null,null,null,null,null,null,null,null,null,null,null,null,null,null,2,null,null,null,null,null,null,null,null,null,null,null,null,null,null,null,null,null,null,null,null,null,null,null,null,null,null,null,null,null,null,null,null,null,null,null,null,null,null,null,null,null,null,null,null,null,null,null,null,null,null,null,null,null,null,3]
[null,"банкноты",null,null,null,5000,null,null,null,null,null,null,null,null,null,null,null,null,null,null,null,null,null,null,null,null,null,null,null,null,null,"руб.",null,null,null,null,null,null,null,null,null,null,null,null,null,null,null,null,null,null,null,{"$f":"Ведомость!AZ31","v":1},null,null,null,null,null,null,null,null,null,null,null,null,null,null,null,null,null,null,null,null,null,null,null,null,null,null,null,null,null,null,null,null,null,null,null,null,null,null,null,null,null,null,null,null,null,null,null,null,null,null,null,null,null,null,{"$f":"F32*AZ32","v":5000}]
[null,null,null,null,null,2000,null,null,null,null,null,null,null,null,null,null,null,null,null,null,null,null,null,null,null,null,null,null,null,null,null,"руб.",null,null,null,null,null,null,null,null,null,null,null,null,null,null,null,null,null,null,null,{"$f":"Ведомость!AZ32","v":1},null,null,null,null,null,null,null,null,null,null,null,null,null,null,null,null,null,null,null,null,null,null,null,null,null,null,null,null,null,null,null,null,null,null,null,null,null,null,null,null,null,null,null,null,null,null,null,null,null,null,null,null,null,null,{"$f":"F33*AZ33","v":2000}]
[null,null,null,null,null,1000,null,null,null,null,null,null,null,null,null,null,null,null,null,null,null,null,null,null,null,null,null,null,null,null,null,"руб.",null,null,null,null,null,null,null,null,null,null,null,null,null,null,null,null,null,null,null,{"$f":"Ведомость!AZ33","v":1},null,null,null,null,null,null,null,null,null,null,null,null,null,null,null,null,null,null,null,null,null,null,null,null,null,null,null,null,null,null,null,null,null,null,null,null,null,null,null,null,null,null,null,null,null,null,null,null,null,null,null,null,null,null,{"$f":"F34*AZ34","v":1000}]
[null,null,null,null,null,500,null,null,null,null,null,null,null,null,null,null,null,null,null,null,null,null,null,null,null,null,null,null,null,null,null,"руб.",null,null,null,null,null,null,null,null,null,null,null,null,null,null,null,null,null,null,null,{"$f":"Ведомость!AZ34","v":1},null,null,null,null,null,null,null,null,null,null,null,null,null,null,null,null,null,null,null,null,null,null,null,null,null,null,null,null,null,null,null,null,null,null,null,null,null,null,null,null,null,null,null,null,null,null,null,null,null,null,null,null,null,null,500]
[null,null,null,null,null,200,null,null,null,null,null,null,null,null,null,null,null,null,null,null,null,null,null,null,null,null,null,null,null,null,null,"руб.",null,null,null,null,null,null,null,null,null,null,null,null,null,null,null,null,null,null,null,{"$f":"Ведомость!AZ35","v":1},null,null,null,null,null,null,null,null,null,null,null,null,null,null,null,null,null,null,null,null,null,null,null,null,null,null,null,null,null,null,null,null,null,null,null,null,null,null,null,null,null,null,null,null,null,null,null,null,null,null,null,null,null,null,{"$f":"F36*AZ36","v":200}]
[null,null,null,null,null,100,null,null,null,null,null,null,null,null,null,null,null,null,null,null,null,null,null,null,null,null,null,null,null,null,null,"руб.",null,null,null,null,null,null,null,null,null,null,null,null,null,null,null,null,null,null,null,{"$f":"Ведомость!AZ36","v":1},null,null,null,null,null,null,null,null,null,null,null,null,null,null,null,null,null,null,null,null,null,null,null,null,null,null,null,null,null,null,null,null,null,null,null,null,null,null,null,null,null,null,null,null,null,null,null,null,null,null,null,null,null,null,100]
[null,null,null,null,null,50,null,null,null,null,null,null,null,null,null,null,null,null,null,null,null,null,null,null,null,null,null,null,null,null,null,"руб.",null,null,null,null,null,null,null,null,null,null,null,null,null,null,null,null,null,null,null,{"$f":"Ведомость!AZ37","v":1},null,null,null,null,null,null,null,null,null,null,null,null,null,null,null,null,null,null,null,null,null,null,null,null,null,null,null,null,null,null,null,null,null,null,null,null,null,null,null,null,null,null,null,null,null,null,null,null,null,null,null,null,null,null,50]
[null,null,null,null,null,10,null,null,null,null,null,null,null,null,null,null,null,null,null,null,null,null,null,null,null,null,null,null,null,null,null,"руб.",null,null,null,null,null,null,null,null,null,null,null,null,null,null,null,null,null,null,null,{"$f":"Ведомость!AZ38","v":1},null,null,null,null,null,null,null,null,null,null,null,null,null,null,null,null,null,null,null,null,null,null,null,null,null,null,null,null,null,null,null,null,null,null,null,null,null,null,null,null,null,null,null,null,null,null,null,null,null,null,null,null,null,null,10]
[null,"монеты",null,null,null,10,null,null,null,null,null,null,null,null,null,null,null,null,null,null,null,null,null,null,null,null,null,null,null,null,null,"руб.",null,null,null,null,null,null,null,null,null,null,null,null,null,null,null,null,null,null,null,{"$f":"Ведомость!AZ39","v":1},null,null,null,null,null,null,null,null,null,null,null,null,null,null,null,null,null,null,null,null,null,null,null,null,null,null,null,null,null,null,null,null,null,null,null,null,null,null,null,null,null,null,null,null,null,null,null,null,null,null,null,null,null,null,10]
[null,null,null,null,null,5,null,null,null,null,null,null,null,null,null,null,null,null,null,null,null,null,null,null,null,null,null,null,null,null,null,"руб.",null,null,null,null,null,null,null,null,null,null,null,null,null,null,null,null,null,null,null,{"$f":"Ведомость!AZ40","v":1},null,null,null,null,null,null,null,null,null,null,null,null,null,null,null,null,null,null,null,null,null,null,null,null,null,null,null,null,null,null,null,null,null,null,null,null,null,null,null,null,null,null,null,null,null,null,null,null,null,null,null,null,null,null,5]
[null,null,null,null,null,2,null,null,null,null,null,null,null,null,null,null,null,null,null,null,null,null,null,null,null,null,null,null,null,null,null,"руб.",null,null,null,null,null,null,null,null,null,null,null,null,null,null,null,null,null,null,null,{"$f":"Ведомость!AZ41","v":1},null,null,null,null,null,null,null,null,null,null,null,null,null,null,null,null,null,null,null,null,null,null,null,null,null,null,null,null,null,null,null,null,null,null,null,null,null,null,null,null,null,null,null,null,null,null,null,null,null,null,null,null,null,null,2]
[null,null,null,null,null,1,null,null,null,null,null,null,null,null,null,null,null,null,null,null,null,null,null,null,null,null,null,null,null,null,null,"руб.",null,null,null,null,null,null,null,null,null,null,null,null,null,null,null,null,null,null,null,{"$f":"Ведомость!AZ42","v":1},null,null,null,null,null,null,null,null,null,null,null,null,null,null,null,null,null,null,null,null,null,null,null,null,null,null,null,null,null,null,null,null,null,null,null,null,null,null,null,null,null,null,null,null,null,null,null,null,null,null,null,null,null,null,1]
[null,null,null,null,null,50,null,null,null,null,null,null,null,null,null,null,null,null,null,null,null,null,null,null,null,null,null,null,null,null,null,"коп.",null,null,null,null,null,null,null,null,null,null,null,null,null,null,null,null,null,null,null,{"$f":"Ведомость!AZ43","v":1},null,null,null,null,null,null,null,null,null,null,null,null,null,null,null,null,null,null,null,null,null,null,null,null,null,null,null,null,null,null,null,null,null,null,null,null,null,null,null,null,null,null,null,null,null,null,null,null,null,null,null,null,null,null,{"$f":"F44*AZ44/100","v":0.5}]
[null,null,null,null,null,10,null,null,null,null,null,null,null,null,null,null,null,null,null,null,null,null,null,null,null,null,null,null,null,null,null,"коп.",null,null,null,null,null,null,null,null,null,null,null,null,null,null,null,null,null,null,null,{"$f":"Ведомость!AZ44","v":1},null,null,null,null,null,null,null,null,null,null,null,null,null,null,null,null,null,null,null,null,null,null,null,null,null,null,null,null,null,null,null,null,null,null,null,null,null,null,null,null,null,null,null,null,null,null,null,null,null,null,null,null,null,null,{"$f":"F45*AZ45/100","v":0.1}]
[null,null,null,null,null,5,null,null,null,null,null,null,null,null,null,null,null,null,null,null,null,null,null,null,null,null,null,null,null,null,null,"коп.",null,null,null,null,null,null,null,null,null,null,null,null,null,null,null,null,null,null,null,{"$f":"Ведомость!AZ45","v":1},null,null,null,null,null,null,null,null,null,null,null,null,null,null,null,null,null,null,null,null,null,null,null,null,null,null,null,null,null,null,null,null,null,null,null,null,null,null,null,null,null,null,null,null,null,null,null,null,null,null,null,null,null,null,{"$f":"F46*AZ46/100","v":0.05}]
[null,null,null,null,null,1,null,null,null,null,null,null,null,null,null,null,null,null,null,null,null,null,null,null,null,null,null,null,null,null,null,"коп.",null,null,null,null,null,null,null,null,null,null,null,null,null,null,null,null,null,null,null,{"$f":"Ведомость!AZ46","v":1},null,null,null,null,null,null,null,null,null,null,null,null,null,null,null,null,null,null,null,null,null,null,null,null,null,null,null,null,null,null,null,null,null,null,null,null,null,null,null,null,null,null,null,null,null,null,null,null,null,null,null,null,null,null,{"$f":"F47*AZ47/100","v":0.01}]
[null,"Итого:",null,null,null,null,null,null,null,null,null,null,null,null,null,null,null,null,null,null,null,null,null,null,null,null,null,null,null,null,null,null,null,null,null,null,null,null,null,null,null,null,null,null,null,null,null,null,null,null,null,null,null,null,null,null,null,null,null,null,null,null,null,null,null,null,null,null,null,null,null,null,null,null,null,null,null,null,null,null,null,null,null,null,null,null,null,null,null,null,null,null,null,null,null,null,null,null,null,null,null,null,null,null,null,null,{"$f":"SUM(DC32:FA47)","v":8878.66}]
[]
[]
[null,"Акт вскрытия сумки и пересчета вложенных наличных денег"]
[null,null,null,null,null,null,null,null,null,null,null,null,null,null,null,null,null,null,null,null,null,null,null,null,null,null,null,null,null,null,null,null,null,null,null,null,null,null,null,null,null,null,null,null,null,null,null,null,null,null,null,null,null,null,null,null,null,null,null,null,null,null,null,null,null,null,null,null,null,null,null,null,null,null,null,null,null,null,null,null,null,null,null,null,null,null,null,null,null,null,null,null,null,null,null,null,null,null,null,"Дата"]
["Фактическая сумма \nцифрами",null,null,null,null,null,null,null,null,null,null,null,null,null,null,null,null,null,null,null,null,"Сумма недостачи \nцифрами",null,null,null,null,null,null,null,null,null,null,null,null,null,null,null,null,"Сумма излишка \nцифрами",null,null,null,null,null,null,null,null,null,null,null,null,null,null,null,null,null,null,null,null,"Сомнительные \nденежные знаки\n(для банкнот Банка России - номинал, год образца, серия и номер; для монеты Банка России - номинал, год чеканки, наименование монетного двора)",null,null,null,null,null,null,null,null,null,null,null,null,null,null,null,null,null,null,null,null,null,null,null,null,null,null,null,null,null,null,null,null,"Неплатежеспособные \nне имеющие признаков подделки денежные знаки\n(для банкнот Банка России - номинал, год образца, серия и номер; для монеты Банка России - номинал, год чеканки, наименование монетного двора)",null,null,null,null,null,null,null,null,null,null,null,null,null,null,null,null,null,null,null,null,null,null,null,null,null,null,null,null,null,null,null,null,"Имеющие признаки подделки денежные знаки\n(для банкнот Банка России - номинал, год образца, серия и номер; для монеты Банка России - номинал, год чеканки, наименование монетного двора)"]
[1,null,null,null,null,null,null,null,null,null,null,null,null,null,null,null,null,null,null,null,null,2,null,null,null,null,null,null,null,null,null,null,null,null,null,null,null,null,3,null,null,null,null,null,null,null,null,null,null,null,null,null,null,null,null,null,null,null,null,4,null,null,null,null,null,null,null,null,null,null,null,null,null,null,null,null,null,null,null,null,null,null,null,null,null,null,null,null,null,null,null,null,5,null,null,null,null,null,null,null,null,null,null,null,null,null,null,null,null,null,null,null,null,null,null,null,null,null,null,null,null,null,null,null,null,6]
[]
[]
[]
[null,null,null,null,null,null,null,null,null,null,null,null,null,null,null,null,null,null,null,null,null,null,null,null,null,null,null,null,null,null,null,null,null,null,null,null,null,null,null,null,null,null,null,null,null,null,null,null,null,null,null,null,null,null,null,null,null,null,null,"Сумма цифрами",null,null,null,null,null,null,null,null,null,null,null,null,null,null,null,null,null,null,null,null,null,null,null,null,null,null,null,null,null,null,null,null,"Сумма цифрами",null,null,null,null,null,null,null,null,null,null,null,null,null,null,null,null,null,null,null,null,null,null,null,null,null,null,null,null,null,null,null,null,"Сумма цифрами"]
[]
[null,null,null,null,null,null,null,null,null,null,null,null,null,null,null,null,null,null,null,null,null,null,null,null,null,null,null,null,null,null,null,null,null,null,null,null,null,null,null,null,null,null,null,null,null,null,null,null,null,null,null,null,null,null,null,null,null,null,null,null,null,null,null,null,null,null,null,null,null,null,null,null,null,null,null,null,null,null,null,null,null,null,null,null,null,null,null,null,null,null,null,null,null,null,null,null,null,null,null,null,null,null,null,null,null,null,null,null,null,null,null,null,null,null,null,null,null,null,null,null,null,null,null,"Клиент "]
["(наименование должности)",null,null,null,null,null,null,null,null,null,null,null,null,null,null,null,null,null,null,null,null,"(личная подпись)",null,null,null,null,null,null,null,null,null,null,null,null,null,null,"(фамилия, инициалы)",null,null,null,null,null,null,null,null,null,null,null,null,null,null,null,null,null,null,null,null,null,"(наименование должности)",null,null,null,null,null,null,null,null,null,null,null,null,null,null,null,null,null,null,null,null,"(личная подпись)",null,null,null,null,null,null,null,null,null,null,null,null,null,null,"(фамилия, инициалы)",null,null,null,null,null,null,null,null,null,null,null,null,null,null,null,null,null,null,null,null,null,null,null,null,null,null,null,null,null,"(личная подпись)",null,null,null,null,null,null,null,null,null,null,null,null,null,null,"(фамилия, инициалы)"]

{"sheet":"Квитанция","index":3,"n_rows":39,"n_cols":146,"rows_kept":39,"cut":false,"hidden":false,"merged":[[13,1,13,79],[13,80,13,86],[13,87,13,120],[9,57,9,120],[9,121,9,157],[10,38,10,120],[10,121,10,135],[10,136,10,157],[11,136,11,157],[26,119,26,133],[23,1,23,32],[25,119,25,133],[25,93,25,117],[25,135,25,157],[25,0,25,24],[25,26,25,40],[25,42,25,64],[25,65,26,92],[26,42,26,64],[20,39,20,70],[22,145,24,157],[24,115,24,144],[23,34,23,60],[23,92,23,113],[23,61,23,91],[21,11,21,36],[21,39,21,70],[22,1,22,33],[24,1,24,32],[0,127,0,157],[2,127,2,137],[2,138,2,157],[11,87,11,120],[11,121,11,135],[8,121,8,157],[5,78,5,120],[1,75,2,115],[11,1,11,79],[11,80,11,86],[26,93,26,117],[28,99,28,138],[29,99,29,138],[8,0,8,120],[10,1,10,37],[16,28,16,157],[12,136,12,157],[12,1,12,38],[12,39,12,120],[18,2,18,9],[30,0,30,20],[30,21,30,37],[30,38,30,58],[26,0,26,24],[24,92,24,113],[30,125,30,157],[26,135,26,157],[30,59,30,91],[30,92,30,124],[26,26,26,40],[35,77,35,91],[35,60,35,76],[31,0,31,20],[31,21,31,37],[31,38,31,58],[31,59,31,91],[31,125,31,157],[32,92,32,124],[32,125,32,157],[37,124,37,137],[37,139,37,157],[35,143,35,157],[37,94,37,112],[33,92,33,124],[33,125,33,157],[35,93,35,109],[38,139,38,157],[37,79,37,92],[34,59,34,91],[34,92,34,124],[35,110,35,124],[34,125,34,157],[35,126,35,142],[37,58,37,77],[32,38,35,58],[32,59,32,91],[38,79,38,92],[38,94,38,112],[31,92,31,124],[22,34,22,60],[20,11,20,36],[23,115,23,144],[38,0,38,19],[38,21,38,34],[38,36,38,54],[38,124,38,137],[1,42,2,74],[14,22,14,157],[15,1,15,157],[3,127,4,137],[3,138,4,157],[3,65,3,114],[4,68,4,120],[5,11,5,67],[13,136,13,157],[2,36,2,41],[38,58,38,77],[14,1,14,21],[16,1,16,27],[24,34,24,60],[37,0,37,19],[37,21,37,34],[37,36,37,54],[32,0,35,20],[32,21,35,37],[33,59,33,91],[18,11,18,31],[7,16,7,67],[7,78,7,120],[5,121,7,157],[6,9,6,89],[6,1,6,8],[9,8,9,45],[9,46,9,56],[12,121,12,135],[13,121,13,135]]}
[null,null,null,null,null,null,null,null,null,null,null,null,null,null,null,null,null,null,null,null,null,null,null,null,null,null,null,null,null,null,null,null,null,null,null,null,null,null,null,null,null,null,null,null,null,null,null,null,null,null,null,null,null,null,null,null,null,null,null,null,null,null,null,null,null,null,null,null,null,null,null,null,null,null,null,null,null,null,null,null,null,null,null,null,null,null,null,null,null,null,null,null,null,null,null,null,null,null,null,null,null,null,null,null,null,null,null,null,null,null,null,null,null,null,null,null,null,null,null,null,null,null,null,null,null,null,null,"Код формы документа\nпо ОКУД 0402300"]
[null,null,null,null,null,null,null,null,null,null,null,null,null,null,null,null,null,null,null,null,null,null,null,null,null,null,null,null,null,null,null,null,null,null,null,null,null,null,null,null,null,null,{"$f":"Ведомость!AQ2","v":5252},null,null,null,null,null,null,null,null,null,null,null,null,null,null,null,null,null,null,null,null,null,null,null,null,null,null,null,null,null,null,null,null,{"$f":"Ведомость!BX2","v":"2018-01-15"}]
[null,"КВИТАНЦИЯ К СУМКЕ",null,null,null,null,null,null,null,null,null,null,null,null,null,null,null,null,null,null,null,null,null,null,null,null,null,null,null,null,null,null,null,null,null,null,"№",null,null,null,null,null,null,null,null,null,null,null,null,null,null,null,null,null,null,null,null,null,null,null,null,null,null,null,null,null,null,null,null,null,null,null,null,null,null,null,null,null,null,null,null,null,null,null,null,null,null,null,null,null,null,null,null,null,null,null,null,null,null,null,null,null,null,null,null,null,null,null,null,null,null,null,null,null,null,null,null,null,null,null,null,null,null,null,null,null,null,"Сумка № ",null,null,null,null,null,null,null,null,null,null,{"$f":"Ведомость!EI3","v":5252}]
[null,null,null,null,null,null,null,null,null,null,null,null,null,null,null,null,null,null,null,null,null,null,null,null,null,null,null,null,null,null,null,null,null,null,null,null,null,null,null,null,null,null,null,null,null,null,null,null,null,null,null,null,null,null,null,null,null,null,null,null,null,null,null,null,null,"Дата",null,null,null,null,null,null,null,null,null,null,null,null,null,null,null,null,null,null,null,null,null,null,null,null,null,null,null,null,null,null,null,null,null,null,null,null,null,null,null,null,null,null,null,null,null,null,null,null,null,null,null,null,null,null,null,null,null,null,null,null,null,null,null,null,null,null,null,null,null,null,null,null,{"$f":"Ведомость!EI4","v":0}]
[null,null,null,null,null,null,null,null,null,null,null,null,null,null,null,null,null,null,null,null,null,null,null,null,null,null,null,null,null,null,null,null,null,null,null,null,null,null,null,null,null,null,null,null,null,null,null,null,null,null,null,null,null,null,null,null,null,null,null,null,null,null,null,null,null,null,null,null,"ДЕБЕТ"]
[null,"От кого",null,null,null,null,null,null,null,null,null,{"$f":"Ведомость!L6","v":0},null,null,null,null,null,null,null,null,null,null,null,null,null,null,null,null,null,null,null,null,null,null,null,null,null,null,null,null,null,null,null,null,null,null,null,null,null,null,null,null,null,null,null,null,null,null,null,null,null,null,null,null,null,null,null,null,null,"счет №",null,null,null,null,null,null,null,null,{"$f":"Ведомость!CA6","v":0},null,null,null,null,null,null,null,null,null,null,null,null,null,null,null,null,null,null,null,null,null,null,null,null,null,null,null,null,null,null,null,null,null,null,null,null,null,null,null,null,null,null,{"$f":"Ведомость!DR6","v":8878.66}]
[null,"адрес:",null,null,null,null,null,null,null,{"$f":"Ведомость!J7","v":0},null,null,null,null,null,null,null,null,null,null,null,null,null,null,null,null,null,null,null,null,null,null,null,null,null,null,null,null,null,null,null,null,null,null,null,null,null,null,null,null,null,null,null,null,null,null,null,null,null,null,null,null,null,null,null,null,null,null,null,null,null,null,null,null,null,null,null,null,null,null,null,null,null,null,null,null,null,null,null,null,"КРЕДИТ"]
[null,"Получатель",null,null,null,null,null,null,null,null,null,null,null,null,null,null,{"$f":"Ведомость!Q8","v":0},null,null,null,null,null,null,null,null,null,null,null,null,null,null,null,null,null,null,null,null,null,null,null,null,null,null,null,null,null,null,null,null,null,null,null,null,null,null,null,null,null,null,null,null,null,null,null,null,null,null,null,null,"счет №",null,null,null,null,null,null,null,null,{"$f":"Ведомость!CA8","v":0}]
[null,null,null,null,null,null,null,null,null,null,null,null,null,null,null,null,null,null,null,null,null,null,null,null,null,null,null,null,null,null,null,null,null,null,null,null,null,null,null,null,null,null,null,null,null,null,null,null,null,null,null,null,null,null,null,null,null,null,null,null,null,null,null,null,null,null,null,null,null,null,null,null,null,null,null,null,null,null,null,null,null,null,null,null,null,null,null,null,null,null,null,null,null,null,null,null,null,null,null,null,null,null,null,null,null,null,null,null,null,null,null,null,null,null,null,null,null,null,null,null,null,"Сумма цифрами"]
[null,"ИНН",null,null,null,null,null,null,{"$f":"Ведомость!I10","v":0},null,null,null,null,null,null,null,null,null,null,null,null,null,null,null,null,null,null,null,null,null,null,null,null,null,null,null,null,null,null,null,null,null,null,null,null,null,"Счет № ",null,null,null,null,null,null,null,null,null,null,{"$f":"Ведомость!BF10","v":0},null,null,null,null,null,null,null,null,null,null,null,null,null,null,null,null,null,null,null,null,null,null,null,null,null,null,null,null,null,null,null,null,null,null,null,null,null,null,null,null,null,null,null,null,null,null,null,null,null,null,null,null,null,null,null,null,null,null,null,null,null,null,null,"в том числе по символам:"]
[null,"Наименование банка-вносителя",null,null,null,null,null,null,null,null,null,null,null,null,null,null,null,null,null,null,null,null,null,null,null,null,null,null,null,null,null,null,null,null,null,null,null,null,{"$f":"Ведомость!AM11","v":0},null,null,null,null,null,null,null,null,null,null,null,null,null,null,null,null,null,null,null,null,null,null,null,null,null,null,null,null,null,null,null,null,null,null,null,null,null,null,null,null,null,null,null,null,null,null,null,null,null,null,null,null,null,null,null,null,null,null,null,null,null,null,null,null,null,null,null,null,null,null,null,null,null,null,null,null,null,null,null,null,null,null,"символ",null,null,null,null,null,null,null,null,null,null,null,null,null,null,"сумма"]
[null,null,null,null,null,null,null,null,null,null,null,null,null,null,null,null,null,null,null,null,null,null,null,null,null,null,null,null,null,null,null,null,null,null,null,null,null,null,null,null,null,null,null,null,null,null,null,null,null,null,null,null,null,null,null,null,null,null,null,null,null,null,null,null,null,null,null,null,null,null,null,null,null,null,null,null,null,null,null,null,"БИК",null,null,null,null,null,null,{"$f":"Ведомость!CJ12","v":0},null,null,null,null,null,null,null,null,null,null,null,null,null,null,null,null,null,null,null,null,null,null,null,null,null,null,null,null,null,null,null,null,null,{"$f":"Ведомость!DR12","v":0},null,null,null,null,null,null,null,null,null,null,null,null,null,null,{"$f":"Ведомость!EG12","v":8878.66}]
[null,"Наименование банка-получателя",null,null,null,null,null,null,null,null,null,null,null,null,null,null,null,null,null,null,null,null,null,null,null,null,null,null,null,null,null,null,null,null,null,null,null,null,null,{"$f":"Ведомость!AN13","v":0}]
[null,null,null,null,null,null,null,null,null,null,null,null,null,null,null,null,null,null,null,null,null,null,null,null,null,null,null,null,null,null,null,null,null,null,null,null,null,null,null,null,null,null,null,null,null,null,null,null,null,null,null,null,null,null,null,null,null,null,null,null,null,null,null,null,null,null,null,null,null,null,null,null,null,null,null,null,null,null,null,null,"БИК",null,null,null,null,null,null,{"$f":"Ведомость!CJ14","v":0}]
[null,"Сумма прописью:"]
[null,{"$f":"Ведомость!B16","v":"Восемь тысяч восемьсот семьдесят восемь рублей 66 копеек"}]
[null,"Источник поступления",null,null,null,null,null,null,null,null,null,null,null,null,null,null,null,null,null,null,null,null,null,null,null,null,null,null,{"$f":"Ведомость!AC18","v":0}]
[]
[null,null,"ПИН",null,null,null,null,null,null,null,null,{"$f":"Данные!C2","v":0}]
[]
[null,"Клиент",null,null,null,null,null,null,null,null,null,null,null,null,null,null,null,null,null,null,null,null,null,null,null,null,null,null,null,null,null,null,null,null,null,null,null,null,null,{"$f":"Данные!C15","v":"Заполняются фамилия и инициалы кассира"}]
[null,null,null,null,null,null,null,null,null,null,null,"(личная подпись)",null,null,null,null,null,null,null,null,null,null,null,null,null,null,null,null,null,null,null,null,null,null,null,null,null,null,null,"(фамилия, инициалы)"]
[null,"Опломбированную сумку №",null,null,null,null,null,null,null,null,null,null,null,null,null,null,null,null,null,null,null,null,null,null,null,null,null,null,null,null,null,null,null,null,null,null,null,null,null,null,null,null,null,null,null,null,null,null,null,null,null,null,null,null,null,null,null,null,null,null,null,null,null,null,null,null,null,null,null,null,null,null,null,null,null,null,null,null,null,null,null,null,null,null,null,null,null,null,null,null,null,null,null,null,null,null,null,null,null,null,null,null,null,null,null,null,null,null,null,null,null,null,null,null,null,null,null,null,null,null,null,null,null,null,null,null,null,null,null,null,null,null,null,null,null,null,null,null,null,null,null,null,null,null,null,"место печати (штампа)"]
[null,"без пересчета принял",null,null,null,null,null,null,null,null,null,null,null,null,null,null,null,null,null,null,null,null,null,null,null,null,null,null,null,null,null,null,null,null,null,null,null,null,null,null,null,null,null,null,null,null,null,null,null,null,null,null,null,null,null,null,null,null,null,null,null,"инкассаторский работник"]
[null,null,null,null,null,null,null,null,null,null,null,null,null,null,null,null,null,null,null,null,null,null,null,null,null,null,null,null,null,null,null,null,null,null,"Дата",null,null,null,null,null,null,null,null,null,null,null,null,null,null,null,null,null,null,null,null,null,null,null,null,null,null,null,null,null,null,null,null,null,null,null,null,null,null,null,null,null,null,null,null,null,null,null,null,null,null,null,null,null,null,null,null,null,"(личная подпись)",null,null,null,null,null,null,null,null,null,null,null,null,null,null,null,null,null,null,null,null,null,null,"(фамилия, инициалы)"]
[null,null,null,null,null,null,null,null,null,null,null,null,null,null,null,null,null,null,null,null,null,null,null,null,null,null,null,null,null,null,null,null,null,null,null,null,null,null,null,null,null,null,null,null,null,null,null,null,null,null,null,null,null,null,null,null,null,null,null,null,null,null,null,null,null,"Сумка с объявленной суммой принята"]
["(наименование должности)",null,null,null,null,null,null,null,null,null,null,null,null,null,null,null,null,null,null,null,null,null,null,null,null,null,"(личная подпись)",null,null,null,null,null,null,null,null,null,null,null,null,null,null,null,"(фамилия, \nинициалы)",null,null,null,null,null,null,null,null,null,null,null,null,null,null,null,null,null,null,null,null,null,null,null,null,null,null,null,null,null,null,null,null,null,null,null,null,null,null,null,null,null,null,null,null,null,null,null,null,null,null,"(наименование должности)",null,null,null,null,null,null,null,null,null,null,null,null,null,null,null,null,null,null,null,null,null,null,null,null,null,"(личная подпись)",null,null,null,null,null,null,null,null,null,null,null,null,null,null,null,"(фамилия, \nинициалы)"]
[]
[null,"Акт вскрытия сумки и пересчета вложенных наличных денег"]
[null,null,null,null,null,null,null,null,null,null,null,null,null,null,null,null,null,null,null,null,null,null,null,null,null,null,null,null,null,null,null,null,null,null,null,null,null,null,null,null,null,null,null,null,null,null,null,null,null,null,null,null,null,null,null,null,null,null,null,null,null,null,null,null,null,null,null,null,null,null,null,null,null,null,null,null,null,null,null,null,null,null,null,null,null,null,null,null,null,null,null,null,null,null,null,null,null,null,null,"Дата"]
["Фактическая сумма \nцифрами",null,null,null,null,null,null,null,null,null,null,null,null,null,null,null,null,null,null,null,null,"Сумма недостачи \nцифрами",null,null,null,null,null,null,null,null,null,null,null,null,null,null,null,null,"Сумма излишка \nцифрами",null,null,null,null,null,null,null,null,null,null,null,null,null,null,null,null,null,null,null,null,"Сомнительные \nденежные знаки\n(для банкнот Банка России - номинал, год образца, серия и номер; для монеты Банка России - номинал, год чеканки, наименование монетного двора)",null,null,null,null,null,null,null,null,null,null,null,null,null,null,null,null,null,null,null,null,null,null,null,null,null,null,null,null,null,null,null,null,"Неплатежеспособные \nне имеющие признаков подделки денежные знаки\n(для банкнот Банка России - номинал, год образца, серия и номер; для монеты Банка России - номинал, год чеканки, наименование монетного двора)",null,null,null,null,null,null,null,null,null,null,null,null,null,null,null,null,null,null,null,null,null,null,null,null,null,null,null,null,null,null,null,null,"Имеющие признаки подделки денежные знаки\n(для банкнот Банка России - номинал, год образца, серия и номер; для монеты Банка России - номинал, год чеканки, наименование монетного двора)"]
[1,null,null,null,null,null,null,null,null,null,null,null,null,null,null,null,null,null,null,null,null,2,null,null,null,null,null,null,null,null,null,null,null,null,null,null,null,null,3,null,null,null,null,null,null,null,null,null,null,null,null,null,null,null,null,null,null,null,null,4,null,null,null,null,null,null,null,null,null,null,null,null,null,null,null,null,null,null,null,null,null,null,null,null,null,null,null,null,null,null,null,null,5,null,null,null,null,null,null,null,null,null,null,null,null,null,null,null,null,null,null,null,null,null,null,null,null,null,null,null,null,null,null,null,null,6]
[]
[]
[]
[null,null,null,null,null,null,null,null,null,null,null,null,null,null,null,null,null,null,null,null,null,null,null,null,null,null,null,null,null,null,null,null,null,null,null,null,null,null,null,null,null,null,null,null,null,null,null,null,null,null,null,null,null,null,null,null,null,null,null,null,"Сумма цифрами",null,null,null,null,null,null,null,null,null,null,null,null,null,null,null,null,null,null,null,null,null,null,null,null,null,null,null,null,null,null,null,null,"Сумма цифрами",null,null,null,null,null,null,null,null,null,null,null,null,null,null,null,null,null,null,null,null,null,null,null,null,null,null,null,null,null,null,null,null,"Сумма цифрами"]
[]
[null,null,null,null,null,null,null,null,null,null,null,null,null,null,null,null,null,null,null,null,null,null,null,null,null,null,null,null,null,null,null,null,null,null,null,null,null,null,null,null,null,null,null,null,null,null,null,null,null,null,null,null,null,null,null,null,null,null,null,null,null,null,null,null,null,null,null,null,null,null,null,null,null,null,null,null,null,null,null,null,null,null,null,null,null,null,null,null,null,null,null,null,null,null,null,null,null,null,null,null,null,null,null,null,null,null,null,null,null,null,null,null,null,null,null,null,null,null,null,null,null,null,null,"Клиент "]
["(наименование должности)",null,null,null,null,null,null,null,null,null,null,null,null,null,null,null,null,null,null,null,null,"(личная подпись)",null,null,null,null,null,null,null,null,null,null,null,null,null,null,"(фамилия, инициалы)",null,null,null,null,null,null,null,null,null,null,null,null,null,null,null,null,null,null,null,null,null,"(наименование должности)",null,null,null,null,null,null,null,null,null,null,null,null,null,null,null,null,null,null,null,null,"(личная подпись)",null,null,null,null,null,null,null,null,null,null,null,null,null,null,"(фамилия, инициалы)",null,null,null,null,null,null,null,null,null,null,null,null,null,null,null,null,null,null,null,null,null,null,null,null,null,null,null,null,null,"(личная подпись)",null,null,null,null,null,null,null,null,null,null,null,null,null,null,"(фамилия, инициалы)"]